Cogmind - Beta 11.1 @@@ ROGUE MODE // 2022.10.04 @ 19:44:10 Player: Flerik Result: Destroyed by B-86 Titan with Railgun Performance ------------- Evolutions (7) 3500 Regions Visited (21) 4200 Robots Destroyed (40) 200 Value Destroyed (585) 585 Prototype IDs (20) 400 Alien Tech Used (0) 0 Bonus (1611) 1611 TOTAL SCORE: 10496 Bonus ------- Follower Combat Kills 311 Met Data Miner 300 Met Warlord at Base 500 MAIN.C Attacked Warlord 500 Cogmind --------- Core Integrity 0/1300 Matter 300/300 Energy 100/100 System Corruption 1% Temperature Cool (10) Movement Flying (45) Location -3/Armory Parts ------- > --- POWER (2) -------- (None) > --- PROPULSION (6) --- Impulse Thruster Array > --- UTILITY (11) ----- Transport Network Coupler Transport Network Coupler Advanced Salvage Targeting Computer Advanced Launcher Guidance Computer Armor Integrity Analyzer Hacking Suite > --- WEAPON (2) ------- (None) > --- INVENTORY (5) ---- Light Antimatter Reactor Xenon Bombardment Thruster Tiamat Missile Launcher Vortex Lance Vortex Lance Peak State ------------ > --- POWER ------------ Micro Nuclear Core > --- PROPULSION ------- Improved Flight Unit Nuclear Pulse Array Electron Diverter Electron Diverter > --- UTILITY ---------- Small Storage Unit Enhanced Optical Array Advanced Sensor Array Transport Network Coupler Experimental Core Analyzer Hacking Suite Makeshift Hacking Suite Improved System Shield Improved Corruption Screen > --- WEAPON ----------- Molecular Deconstructor > --- INVENTORY -------- Improved Deuterium Engine Advanced Salvage Targeting Computer Dispersion Rifle Dispersion Rifle Tiamat Missile Launcher Improved Datajack Scythe Makeshift Spear [Rating: 99] Favorites ----------- Power Micro Nuclear Core Engine Ion Engine Power Core Micro Nuclear Core Reactor Light Antimatter Reactor Propulsion Improved Flight Unit Leg Aluminum Leg Flight Unit Improved Flight Unit Utility Transport Network Coupler Device ECM Suite Storage Small Storage Unit Processor Transport Network Coupler Hackware Makeshift Hacking Suite Weapon Small Laser Energy Gun Small Laser Ballistic Gun Light Assault Rifle Launcher Rocket Launcher Special Weapon Molecular Deconstructor Impact Weapon Great Maul Slashing Weapon Katana Special Melee Weapon Improved Datajack Build | -11 -10 -10 -9 -8 -8 -7 -7 -7 -6 -6 -6 -6 -5 -5 -5 -5 -5 -4 -4 -3 -3 ------- Run | Scr Mat Min Mat Mat Sto Fac Low Low Fac Low Low Dat Pro Fac Upp Upp War Pro Fac Res Arm Slots Evolved 14 | . . . 2 2 . 2 . . 2 . . . . 2 . . . . 2 2 . Power 1 | . . . . . . . . . . . . . . . . . . . 1 . . Propulsion 4 | . . . 1 1 . 1 . . . . . . . . . . . . . 1 . Utility 9 | . . . 1 1 . 1 . . 2 . . . . 2 . . . . 1 1 . Weapon . | . . . . . . . . . . . . . . . . . . . . . . Parts Attached 103 | 8 . . 7 8 11 9 5 1 4 2 1 . 2 17 1 . 9 . 1 17 . Power 16 | 1 . . . 1 1 3 1 1 . 1 . . . 4 . . . . . 3 . Engine 2 | 1 . . . . . . . . . . . . . . . . . . . 1 . Core 12 | . . . . 1 1 3 1 1 . 1 . . . 4 . . . . . . . Reactor 2 | . . . . . . . . . . . . . . . . . . . . 2 . Propulsion 34 | 2 . . 5 1 3 3 3 . 2 . . . . 5 . . 2 . 1 7 . Treads . | . . . . . . . . . . . . . . . . . . . . . . Leg 3 | 2 . . 1 . . . . . . . . . . . . . . . . . . Wheel . | . . . . . . . . . . . . . . . . . . . . . . Hover . | . . . . . . . . . . . . . . . . . . . . . . Flight 31 | . . . 4 1 3 3 3 . 2 . . . . 5 . . 2 . 1 7 . Utility 33 | 2 . . 2 3 3 2 . . 2 1 . . 2 6 . . 4 . . 6 . Device 15 | 1 . . 2 1 1 . . . 2 1 . . . 2 . . 3 . . 2 . Storage 5 | 1 . . . 1 1 1 . . . . . . . 1 . . . . . . . Processor 10 | . . . . 1 1 1 . . . . . . 1 1 . . 1 . . 4 . Hackware 3 | . . . . . . . . . . . . . 1 2 . . . . . . . Protection . | . . . . . . . . . . . . . . . . . . . . . . Artifact . | . . . . . . . . . . . . . . . . . . . . . . Weapon 20 | 3 . . . 3 4 1 1 . . . 1 . . 2 1 . 3 . . 1 . Energy Gun 4 | 2 . . . 1 . . 1 . . . . . . . . . . . . . . Energy Cannon . | . . . . . . . . . . . . . . . . . . . . . . Ballistic Gun 1 | 1 . . . . . . . . . . . . . . . . . . . . . Ballistic Cannon . | . . . . . . . . . . . . . . . . . . . . . . Launcher 4 | . . . . 1 2 . . . . . . . . 1 . . . . . . . Special Weapon 4 | . . . . . . 1 . . . . . . . . 1 . 2 . . . . Impact Weapon 2 | . . . . . . . . . . . 1 . . 1 . . . . . . . Slashing Weapon 4 | . . . . 1 2 . . . . . . . . . . . . . . 1 . Piercing Weapon . | . . . . . . . . . . . . . . . . . . . . . . Special Melee Weapon 1 | . . . . . . . . . . . . . . . . . 1 . . . . Unidentified Prototypes 10 | . . . 1 1 . . . . 1 . . . . 1 1 . 4 . . 1 . Parts Lost 42 | . . . 3 . 4 . 7 . . . 1 . . 8 . . . 3 2 8 6 Power 7 | . . . . . . . 2 . . . . . . 1 . . . 1 . 1 2 Propulsion 19 | . . . 1 . 3 . 3 . . . . . . 5 . . . . 1 3 3 Utility 10 | . . . 1 . . . . . . . 1 . . 2 . . . 2 . 4 . Weapon 6 | . . . 1 . 1 . 2 . . . . . . . . . . . 1 . 1 Highest Loss Streak 8 | . . . 3 . 3 . 4 . . . 1 . . 8 . . . 3 2 6 6 To Critical Strikes . | . . . . . . . . . . . . . . . . . . . . . . Average Slot Usage (%) 83 | . 100 100 89 81 87 94 90 84 78 85 85 80 82 79 84 88 84 85 61 45 59 Engine 2 | . 14 14 11 . . . . . . . . . . . . . . . . . . Core 4 | . . . . 8 7 7 5 7 6 6 6 6 6 4 5 5 5 4 . . . Leg 4 | . 28 28 11 . . . . . . . . . . . . . . . . . . Flight 24 | . . . 21 36 36 38 34 38 32 33 33 33 33 25 23 23 23 23 19 9 17 Device 15 | . 14 14 19 20 18 15 15 15 19 25 24 20 20 13 11 11 7 10 5 5 . Storage 6 | . 14 14 11 9 9 7 7 7 6 6 6 6 6 5 5 5 5 5 5 1 . Processor 11 | . . . . . 9 13 15 15 13 13 13 13 13 13 17 17 17 17 15 19 23 Hackware 4 | . . . . . . . . . . . . . 2 10 17 17 17 16 10 5 4 Energy Gun 4 | . 28 28 14 . . . 5 . . . . . . . . . . . . . . Special Weapon 1 | . . . . . . 3 1 . . . . . . . 2 5 4 5 4 . . Slashing Weapon 1 | . . . . 7 8 7 3 . . . . . . . . . . . . 1 4 Naked Turns . | . . . . . . . . . . . . . . . . . . . . . . Heaviest Build 26 | 14 14 14 15 18 19 23 24 19 20 22 26 21 21 24 20 20 20 20 13 26 26 Greatest Support 45 | 20 20 20 30 17 17 23 24 24 25 25 25 25 25 26 26 26 34 34 34 45 44 Greatest Overweight (x) 7 | 1 . . 2 1 1 . 7 . . . 1 . . . . . . . . 2 . Average Overweight (x) . | . . . . . . . . . . . . . . . . . . . . . . Largest Inventory Capacity 10 | 8 8 8 8 10 10 10 10 10 10 10 10 10 10 10 8 8 8 8 8 8 5 Average Capacity 8 | 7 8 8 8 8 8 8 10 10 10 10 10 10 10 9 8 8 8 8 8 5 5 Most Carried 10 | 4 6 8 8 10 10 10 10 6 9 9 10 10 10 10 8 8 8 7 8 7 5 Average Carried 7 | 2 5 7 7 5 7 8 7 6 8 9 9 10 9 8 7 8 7 7 7 4 5 Final Capacity 10 | 8 8 8 8 10 8 10 10 10 10 10 10 10 10 8 8 8 8 8 8 5 5 Final Carried 10 | 4 6 8 7 10 7 10 7 6 9 9 10 10 10 8 8 8 7 7 8 5 5 Class Distribution -------------------- 24% | Infiltrator-Sprinter 24% | Mutant 21% | Hacker-Sprinter 13% | Sprinter 6% | Scavenger-Sprinter 5% | Hacker-Mutant Dominant Class ---------------- Mutant | -10/Materials Mutant | -10/Mines Sprinter | -9/Materials Sprinter | -8/Materials Commander-Sprinter | -8/Storage Sprinter | -7/Factory Scavenger-Sprinter | -7/Lower Caves Sprinter | -7/Lower Caves Infiltrator-Sprinter | -6/Factory Infiltrator-Sprinter | -6/Lower Caves Infiltrator-Sprinter | -6/Lower Caves Infiltrator-Sprinter | -6/Data Miner Infiltrator-Sprinter | -5/Proximity Caves Hacker-Sprinter | -5/Factory Hacker-Sprinter | -5/Upper Caves Hacker-Sprinter | -5/Upper Caves Hacker-Sprinter | -5/Warlord Hacker-Sprinter | -4/Proximity Caves Hacker-Mutant | -4/Factory Mutant | -3/Research Scavenger-Sprinter | -3/Armory Resources | -11 -10 -10 -9 -8 -8 -7 -7 -7 -6 -6 -6 -6 -5 -5 -5 -5 -5 -4 -4 -3 -3 ----------- Run | Scr Mat Min Mat Mat Sto Fac Low Low Fac Low Low Dat Pro Fac Upp Upp War Pro Fac Res Arm Matter Collected 1217 | 258 . 22 . 37 227 . 60 37 . 96 34 . 57 29 205 . . . . 155 . Remotely . | . . . . . . . . . . . . . . . . . . . . . . Salvage Created 1151 | 105 . 66 48 109 236 55 84 . . . . . . 49 50 . . . . 349 . Parts 85 | 17 . 8 3 10 22 2 2 . . . . . . 4 2 . . . . 15 . Haulers Intercepted 6 | . . . 1 1 2 1 . . . . . . . . . . . . . 1 . Recyclers Shooed 1 | 1 . . . . . . . . . . . . . . . . . . . . . Parts Field Recycled . | . . . . . . . . . . . . . . . . . . . . . . Retrieved Matter . | . . . . . . . . . . . . . . . . . . . . . . Parts Self-Destructed 8 | . . . . . . . 1 . . . . . 1 . 6 . . . . . . Prevented 7 | . . . . . . . 1 . . . . . . . 1 5 . . . . . Kills | -11 -10 -10 -9 -8 -8 -7 -7 -7 -6 -6 -6 -6 -5 -5 -5 -5 -5 -4 -4 -3 -3 ------- Run | Scr Mat Min Mat Mat Sto Fac Low Low Fac Low Low Dat Pro Fac Upp Upp War Pro Fac Res Arm Combat Hostiles Destroyed 21 | . . 3 . 3 4 . 3 . . . . . . 4 1 . . . . 3 . Melee 5 | . . . . 1 . . . . . . . . . 1 . . . . . 3 . Guns 6 | . . 3 . . . . 3 . . . . . . . . . . . . . . AOE 9 | . . . . 2 4 . . . . . . . . 3 . . . . . . . Classes Destroyed 8 | 2 . 1 1 1 2 . . . . . . . . . 1 . . . . . . Worker 2 | 1 . . . . 1 . . . . . . . . . . . . . . . . Tunneler 6 | 4 . 1 . . . . . . . . . . . . . . . . . 1 . Hauler 6 | . . . 1 1 2 1 . . . . . . . . . . . . . 1 . Recycler 3 | . . . . 1 1 . . . . . . . . . . . . . . 1 . Mechanic 1 | . . . . . 1 . . . . . . . . . . . . . . . . Operator 1 | . . . . . 1 . . . . . . . . . . . . . . . . Swarmer 21 | . . 3 . 3 4 . 3 . . . . . . 4 1 . . . . 3 . Samaritan 1 | . . . . . . . . . . . . . . . 1 . . . . . . Best Kill Streak 5 | 3 . 3 1 4 5 1 2 . . . . . . 4 1 . . . . 4 . Combat Bots Only 4 | . . 3 . 3 4 . 2 . . . . . . 4 1 . . . . 3 . Max Kills in Single Turn 3 | 1 . 2 1 3 3 1 1 . . . . . . 3 1 . . . . 1 . Gunslinging . | . . . . . . . . . . . . . . . . . . . . . . Exploded 3 | . . . . 2 3 . . . . . . . . 3 . . . . . . . Melee 1 | . . . . 1 . . . . . . . . . 1 . . . . . 1 . Uniques/NPCs Destroyed . | . . . . . . . . . . . . . . . . . . . . . . Combat | -11 -10 -10 -9 -8 -8 -7 -7 -7 -6 -6 -6 -6 -5 -5 -5 -5 -5 -4 -4 -3 -3 -------- Run | Scr Mat Min Mat Mat Sto Fac Low Low Fac Low Low Dat Pro Fac Upp Upp War Pro Fac Res Arm Damage Taken 5173 | . . 52 300 76 225 85 398 . . 33 181 . 95 654 44 . . 350 361 1716 603 Core 2014 | . . . 75 18 31 23 52 . . 18 68 . 54 183 12 . . 18 156 1022 284 Absorbed by Shields 14 | . . . . . 14 . . . . . . . . . . . . . . . . Regen/Repaired (Parts) 113 | . . . . . 34 13 . . 25 . . . . 41 . . . . . . . Core Remaining (%) 88 | 100 . 100 81 . 91 . . 89 . . . . 83 . . . . 78 86 . . Volleys Fired 51 | 15 . 4 5 2 3 . 15 . . . . . . 2 5 . . . . . . Largest 2 | 2 . 2 2 1 1 . 1 . . . . . . 1 1 . . . . . . Hottest 80 | 80 . 80 80 33 33 . 50 . . . . . . 46 . . . . . . . Shots Fired 75 | 30 . 8 10 2 3 . 15 . . . . . . 2 5 . . . . . . Gun 63 | 30 . 8 10 . . . 15 . . . . . . . . . . . . . . Cannon . | . . . . . . . . . . . . . . . . . . . . . . Launcher 7 | . . . . 2 3 . . . . . . . . 2 . . . . . . . Special 5 | . . . . . . . . . . . . . . . 5 . . . . . . Kinetic . | . . . . . . . . . . . . . . . . . . . . . . Thermal 24 | 15 . 4 5 . . . . . . . . . . . . . . . . . . Explosive 7 | . . . . 2 3 . . . . . . . . 2 . . . . . . . Electromagnetic 39 | 15 . 4 5 . . . 15 . . . . . . . . . . . . . . Robot Hit Streak 12 | 5 . 3 7 8 10 . 12 . . . . . . . 2 . . . . . . Robot Miss Streak 5 | 2 . 1 1 . . . 5 . . . . . . 2 3 . . . . . . Penetration Max . | . . . . . . . . . . . . . . . . . . . . . . Secondary Targets . | . . . . . . . . . . . . . . . . . . . . . . Shots Hit Robots 79 | 18 . 5 8 3 12 4 10 . . . . . . 1 3 . 1 . . 14 . Core Hits 50 | 6 . 4 2 6 11 1 6 . . . . . . 3 . . . . . 11 . Critical Kills . | . . . . . . . . . . . . . . . . . . . . . . Critical Parts Destroyed 1 | . . . . . . . . . . . . . . 1 . . . . . . . Critical Strikes 5 | 1 . . . . . 1 . . . . . . . 1 . . . . . 2 . Corrupt 1 | 1 . . . . . . . . . . . . . . . . . . . . . Smash 1 | . . . . . . . . . . . . . . 1 . . . . . . . Sever 3 | . . . . . . 1 . . . . . . . . . . . . . 2 . Melee Attacks 47 | . . . . 4 13 5 4 . . . 1 . . 4 . . 1 . . 15 . Impact 5 | . . . . . . . . . . . 1 . . 4 . . . . . . . Slashing 41 | . . . . 4 13 5 4 . . . . . . . . . . . . 15 . Piercing . | . . . . . . . . . . . . . . . . . . . . . . Sneak Attacks 11 | . . . . 1 5 1 . . . . . . . . . . 1 . . 3 . Combat Hostiles . | . . . . . . . . . . . . . . . . . . . . . . Follow-up Attacks . | . . . . . . . . . . . . . . . . . . . . . . Damage Inflicted 3005 | 240 . 82 124 373 881 183 236 . . . . . . 296 . . . . . 590 . Guns 560 | 240 . 67 100 . . . 153 . . . . . . . . . . . . . . Cannons . | . . . . . . . . . . . . . . . . . . . . . . Explosions 936 | . . . 24 263 364 . 48 . . . . . . 237 . . . . . . . Melee 1451 | . . . . 110 517 183 35 . . . . . . 59 . . . . . 547 . Ramming 58 | . . 15 . . . . . . . . . . . . . . . . . 43 . Kinetic . | . . . . . . . . . . . . . . . . . . . . . . Thermal 257 | 121 . 31 57 . . . 48 . . . . . . . . . . . . . . Explosive 864 | . . . . 263 364 . . . . . . . . 237 . . . . . . . Electromagnetic 375 | 119 . 36 67 . . . 153 . . . . . . . . . . . . . . Impact 59 | . . . . . . . . . . . . . . 59 . . . . . . . Slashing 1392 | . . . . 110 517 183 35 . . . . . . . . . . . . 547 . Piercing . | . . . . . . . . . . . . . . . . . . . . . . Highest Corruption 5 | . . . . . . . . . 5 5 5 5 5 . . . . . . . 1 Average Corruption 4 | . . . . . . . . . 5 5 5 5 5 . . . . . . . 1 Corruption Purged . | . . . . . . . . . . . . . . . . . . . . . . Corruption Blocked . | . . . . . . . . . . . . . . . . . . . . . . Effects 18 | . . . . . . . . . 1 6 4 . 7 . . . . . . . . Message Errors 5 | . . . . . . . . . . 1 . . 4 . . . . . . . . Matter Fused 11 | . . . . . . . . . 1 4 4 . 2 . . . . . . . . Energy Discharges 2 | . . . . . . . . . . 1 . . 1 . . . . . . . . Overload Shots . | . . . . . . . . . . . . . . . . . . . . . . Overflow Damage 102 | . . . . 36 5 . . . . . . . . 59 . . . . . 2 . Projectiles . | . . . . . . . . . . . . . . . . . . . . . . Explosions 36 | . . . . 36 . . . . . . . . . . . . . . . . . Melee 66 | . . . . . 5 . . . . . . . . 59 . . . . . 2 . Knockbacks 1 | . . 1 . . . . . . . . . . . . . . . . . . . Impact 1 | . . 1 . . . . . . . . . . . . . . . . . . . Kinetic . | . . . . . . . . . . . . . . . . . . . . . . Secondary . | . . . . . . . . . . . . . . . . . . . . . . Self-Inflicted Damage 84 | . . . . . 39 . . . . . . . . 26 . . . . . 19 . Shots 2 | . . . . . 1 . . . . . . . . 1 . . . . . . . Rammed 15 | . . . . . . . . . . . . . . . . . . . . 15 . Targets Rammed 17 | . . 2 . . . . . . . . . . . . . . . . . 15 . Kicked 2 | . . 2 . . . . . . . . . . . . . . . . . . . Crushed . | . . . . . . . . . . . . . . . . . . . . . . Highest Temperature 72 | 72 . 54 45 . 5 10 35 . 1 3 6 . 4 23 . . . 27 . . 16 Average Temperature 18 | 27 . 25 19 . 3 4 11 . 1 3 3 . 2 11 . . . 19 . . 13 Received Heat Transfer 616 | . . . 81 9 69 24 21 . . 12 9 . 18 81 . . . 46 39 120 87 Siege Activations . | . . . . . . . . . . . . . . . . . . . . . . Robots Corrupted . | . . . . . . . . . . . . . . . . . . . . . . Combat Hostiles . | . . . . . . . . . . . . . . . . . . . . . . Parts Fried . | . . . . . . . . . . . . . . . . . . . . . . Impact Corruptions 1 | . . . . . . . . . . . . . . 1 . . . . . . . Robots Melted . | . . . . . . . . . . . . . . . . . . . . . . Combat Hostiles . | . . . . . . . . . . . . . . . . . . . . . . Parts Melted . | . . . . . . . . . . . . . . . . . . . . . . Heat Transferred 525 | 275 . 75 125 . . . 50 . . . . . . . . . . . . . . Parts Sabotaged . | . . . . . . . . . . . . . . . . . . . . . . Parts Stolen . | . . . . . . . . . . . . . . . . . . . . . . Parts Stripped . | . . . . . . . . . . . . . . . . . . . . . . Power Chain Reactions 2 | . . . 1 . . . 1 . . . . . . . . . . . . . . Missiles Intercepted . | . . . . . . . . . . . . . . . . . . . . . . Alert | -11 -10 -10 -9 -8 -8 -7 -7 -7 -6 -6 -6 -6 -5 -5 -5 -5 -5 -4 -4 -3 -3 ------- Run | Scr Mat Min Mat Mat Sto Fac Low Low Fac Low Low Dat Pro Fac Upp Upp War Pro Fac Res Arm Peak Influence 549 | 25 16 81 293 283 549 410 . . 280 . . . . 265 . . . . 177 373 210 Initial 244 | . 16 6 31 118 118 244 . . 161 . . . . 84 . . . . 65 81 195 Average 144 | 8 16 34 96 188 375 313 . . 214 . . . . 111 . . . . 111 143 199 Maximum Alert Level 2 | . . . 1 1 2 2 . . 1 . . . . 1 . . . . . 1 1 Low Security (%) 68 | 100 100 100 89 52 30 . . . 34 . . . . 90 . . . . 100 68 51 Level 1 25 | . . . 10 47 3 99 . . 65 . . . . 9 . . . . . 31 48 Level 2 5 | . . . . . 66 . . . . . . . . . . . . . . . . Level 3 . | . . . . . . . . . . . . . . . . . . . . . . Level 4 . | . . . . . . . . . . . . . . . . . . . . . . Level 5 . | . . . . . . . . . . . . . . . . . . . . . . High Security . | . . . . . . . . . . . . . . . . . . . . . . Max Security . | . . . . . . . . . . . . . . . . . . . . . . Squads Dispatched 9 | . 1 . . . 3 . . . . . . . . 2 . . . . 1 1 1 Investigation 4 | . 1 . . . . . . . . . . . . 2 . . . . . . 1 Extermination 1 | . . . . . . . . . . . . . . . . . . . . 1 . Reinforcement 4 | . . . . . 3 . . . . . . . . . . . . . 1 . . Assault . | . . . . . . . . . . . . . . . . . . . . . . Garrison . | . . . . . . . . . . . . . . . . . . . . . . Intercept . | . . . . . . . . . . . . . . . . . . . . . . Searches Triggered . | . . . . . . . . . . . . . . . . . . . . . . Construction Impeded 1 | . . . . . 1 . . . . . . . . . . . . . . . . Haulers Reinforced . | . . . . . . . . . . . . . . . . . . . . . . Active Scanning Responses . | . . . . . . . . . . . . . . . . . . . . . . Cargo Convoy Interrupts . | . . . . . . . . . . . . . . . . . . . . . . Stealth | -11 -10 -10 -9 -8 -8 -7 -7 -7 -6 -6 -6 -6 -5 -5 -5 -5 -5 -4 -4 -3 -3 --------- Run | Scr Mat Min Mat Mat Sto Fac Low Low Fac Low Low Dat Pro Fac Upp Upp War Pro Fac Res Arm Distress Signals 7 | . . . . . 3 1 . . . . . . . . . . . . . 1 2 Communications Jammed 8 | . . . . . . . . . . . . . . 8 . . . . . . . Distress Signals 8 | . . . . . . . . . . . . . . 8 . . . . . . . Times Spotted 182 | . . 5 21 5 22 7 10 . 1 5 18 . 9 10 4 2 . 21 8 20 14 Peak Tracking Total 17 | . 1 3 17 4 6 4 3 . 1 4 13 . 8 7 4 3 . 13 6 10 14 Tactical Retreats 20 | . . . 3 . . . 2 . 1 2 3 . 2 . . . . 2 . 5 . Traps | -11 -10 -10 -9 -8 -8 -7 -7 -7 -6 -6 -6 -6 -5 -5 -5 -5 -5 -4 -4 -3 -3 ------- Run | Scr Mat Min Mat Mat Sto Fac Low Low Fac Low Low Dat Pro Fac Upp Upp War Pro Fac Res Arm Traps Triggered 5 | . 1 . . . 1 1 . . 1 . . . . . . . . . . 1 . Indirectly . | . . . . . . . . . . . . . . . . . . . . . . Trap Hack Attempts . | . . . . . . . . . . . . . . . . . . . . . . Triggered . | . . . . . . . . . . . . . . . . . . . . . . Disarmed . | . . . . . . . . . . . . . . . . . . . . . . Reprogrammed . | . . . . . . . . . . . . . . . . . . . . . . Reused . | . . . . . . . . . . . . . . . . . . . . . . Traps Extracted . | . . . . . . . . . . . . . . . . . . . . . . Installed . | . . . . . . . . . . . . . . . . . . . . . . Triggered 4 | . . . . . . . . . . . . . . . . 1 3 . . . . Machines | -11 -10 -10 -9 -8 -8 -7 -7 -7 -6 -6 -6 -6 -5 -5 -5 -5 -5 -4 -4 -3 -3 ---------- Run | Scr Mat Min Mat Mat Sto Fac Low Low Fac Low Low Dat Pro Fac Upp Upp War Pro Fac Res Arm Machines Disabled 3 | . . . . 1 1 . . . . . 1 . . . . . . . . . . Max in Single Turn 1 | . . . . 1 1 . . . . . 1 . . . . . . . . . . Garrison Access 3 | . . . . . . 1 . . 1 . . . . 1 . . . . . . . Machines Sabotaged . | . . . . . . . . . . . . . . . . . . . . . . Garrisons Compromised . | . . . . . . . . . . . . . . . . . . . . . . Overloaded Fab Kills . | . . . . . . . . . . . . . . . . . . . . . . Hacking | -11 -10 -10 -9 -8 -8 -7 -7 -7 -6 -6 -6 -6 -5 -5 -5 -5 -5 -4 -4 -3 -3 --------- Run | Scr Mat Min Mat Mat Sto Fac Low Low Fac Low Low Dat Pro Fac Upp Upp War Pro Fac Res Arm Machines Accessed 58 | . 1 . 3 5 5 6 . . 10 1 . 4 1 8 1 . 7 . 4 1 1 Terminals 26 | . . . 3 4 4 1 . . 5 . . . 1 4 . . . . 2 1 1 Fabricators 3 | . . . . . . 1 . . 1 . . . . . . . . . 1 . . Repair Stations 5 | . . . . . 1 1 . . 2 . . . . 1 . . . . . . . Recycling Units 7 | . 1 . . . . 2 . . 1 . . . . 2 . . . . 1 . . Scanalyzers 1 | . . . . 1 . . . . . . . . . . . . . . . . . Garrison Access 3 | . . . . . . 1 . . 1 . . . . 1 . . . . . . . Total Hacks 147 | . 4 . 7 18 14 14 . . 15 1 . 30 1 24 1 . 7 . 8 1 2 Successful 92 | . 3 . 3 9 6 7 . . 7 1 . 30 1 13 1 . 7 . 4 . . Failed 55 | . 1 . 4 9 8 7 . . 8 . . . . 11 . . . . 4 1 2 Catastrophic 9 | . . . . 3 2 . . . 1 . . . . 2 . . . . 1 . . Database Lockouts . | . . . . . . . . . . . . . . . . . . . . . . Manual 68 | . 2 . 6 10 13 2 . . 7 . 1 . . 17 . . 2 . 5 1 2 Terminals 66 | . . . 7 11 12 4 . . 7 . . . 1 17 . . . . 4 1 2 Fabricators 3 | . . . . . . 1 . . 1 . . . . . . . . . 1 . . Repair Stations 13 | . . . . . 2 3 . . 4 . . . . 4 . . . . . . . Recycling Units 16 | . 4 . . . . 5 . . 2 . . . . 2 . . . . 3 . . Scanalyzers 7 | . . . . 7 . . . . . . . . . . . . . . . . . Garrison Access 3 | . . . . . . 1 . . 1 . . . . 1 . . . . . . . Terminal Hacks 46 | . . . . . 1 . . . 2 1 . 30 1 3 1 . 7 . . . . Record 17 | . . . . . . . . . . . . 11 1 . . . 5 . . . . Part Schematic 10 | . . . . . . . . . . . . 10 . . . . . . . . . Robot Schematic 6 | . . . . . . . . . . . . 6 . . . . . . . . . Prototype ID Bank 3 | . . . . . . . . . . . . 3 . . . . . . . . . Open Door 5 | . . . . . 1 . . . . 1 . . . . 1 . 2 . . . . Open DSF 1 | . . . . . . . . . 1 . . . . . . . . . . . . Branch Access Points 2 | . . . . . . . . . 1 . . . . 1 . . . . . . . Unreport Threat 1 | . . . . . . . . . . . . . . 1 . . . . . . . Zone Layout 1 | . . . . . . . . . . . . . . 1 . . . . . . . Fabricator Hacks 1 | . . . . . . . . . . . . . . . . . . . 1 . . Build 1 | . . . . . . . . . . . . . . . . . . . 1 . . Repair Station Hacks 11 | . . . . . 2 2 . . 3 . . . . 4 . . . . . . . Scan Component 6 | . . . . . 1 1 . . 2 . . . . 2 . . . . . . . Repair 5 | . . . . . 1 1 . . 1 . . . . 2 . . . . . . . Recycling Unit Hacks 5 | . 1 . . . . 3 . . . . . . . . . . . . 1 . . Report Inventory 2 | . . . . . . 2 . . . . . . . . . . . . . . . Retrieve Components 3 | . 1 . . . . 1 . . . . . . . . . . . . 1 . . Scanalyzer 6 | . . . . 6 . . . . . . . . . . . . . . . . . Insert Component 3 | . . . . 3 . . . . . . . . . . . . . . . . . Analyze 3 | . . . . 3 . . . . . . . . . . . . . . . . . Garrison Access Hacks 3 | . . . . . . 1 . . 1 . . . . 1 . . . . . . . Seal Access 3 | . . . . . . 1 . . 1 . . . . 1 . . . . . . . Unauthorized Hacks 20 | . 2 . 3 3 3 1 . . 1 . . . . 5 . . . . 2 . . Terminals 17 | . . . 3 3 3 1 . . 1 . . . . 4 . . . . 2 . . Track 1 | . . . . . . . . . . . . . . 1 . . . . . . . Assimilate 3 | . . . 1 . 1 . . . . . . . . 1 . . . . . . . Botnet 11 | . . . 1 3 2 1 . . 1 . . . . 1 . . . . 2 . . Operators 2 | . . . 1 . . . . . . . . . . 1 . . . . . . . Fabricators . | . . . . . . . . . . . . . . . . . . . . . . Repair Stations . | . . . . . . . . . . . . . . . . . . . . . . Recycling Units 3 | . 2 . . . . . . . . . . . . 1 . . . . . . . Reject 1 | . 1 . . . . . . . . . . . . . . . . . . . . Mask 1 | . 1 . . . . . . . . . . . . . . . . . . . . Tunnel 1 | . . . . . . . . . . . . . . 1 . . . . . . . Scanalyzers . | . . . . . . . . . . . . . . . . . . . . . . Garrison Access . | . . . . . . . . . . . . . . . . . . . . . . Data Cores Recovered . | . . . . . . . . . . . . . . . . . . . . . . Used . | . . . . . . . . . . . . . . . . . . . . . . Hacking Detections 36 | . 1 . 3 5 4 5 . . 8 . . . . 5 . . . . 3 1 1 Full Trace Events 2 | . . . . . . . . . . . . . . 1 . . . . . . 1 Feedback Events . | . . . . . . . . . . . . . . . . . . . . . . Feedback Blocked . | . . . . . . . . . . . . . . . . . . . . . . Robot Schematics Acquired 6 | . . . . . . . . . . . . 6 . . . . . . . . . Robots Built . | . . . . . . . . . . . . . . . . . . . . . . Authchips . | . . . . . . . . . . . . . . . . . . . . . . Time 152 | . . . . . . . . . . . . . . . . . . . 152 . . Total Robot Build Rating . | . . . . . . . . . . . . . . . . . . . . . . Part Schematics Acquired 13 | . . . . 3 . . . . . . . 10 . . . . . . . . . Parts Built . | . . . . . . . . . . . . . . . . . . . . . . Authchips . | . . . . . . . . . . . . . . . . . . . . . . Time . | . . . . . . . . . . . . . . . . . . . . . . Total Part Build Rating . | . . . . . . . . . . . . . . . . . . . . . . Parts Repaired 5 | . . . . . 1 1 . . 1 . . . . 2 . . . . . . . Time 114 | . . . . . 38 16 . . 25 . . . . 35 . . . . . . . Parts Recycled . | . . . . . . . . . . . . . . . . . . . . . . Recycled Matter . | . . . . . . . . . . . . . . . . . . . . . . Retrieved Matter . | . . . . . . . . . . . . . . . . . . . . . . Retrieved Components 4 | . 2 . . . . 1 . . . . . . . . . . . . 1 . . Parts Scanalyzed 3 | . . . . 3 . . . . . . . . . . . . . . . . . Part Schematics Acquired 3 | . . . . 3 . . . . . . . . . . . . . . . . . Parts Damaged . | . . . . . . . . . . . . . . . . . . . . . . Bothacking | -11 -10 -10 -9 -8 -8 -7 -7 -7 -6 -6 -6 -6 -5 -5 -5 -5 -5 -4 -4 -3 -3 ------------ Run | Scr Mat Min Mat Mat Sto Fac Low Low Fac Low Low Dat Pro Fac Upp Upp War Pro Fac Res Arm Used RIF Installer . | . . . . . . . . . . . . . . . . . . . . . . Robots Hacked . | . . . . . . . . . . . . . . . . . . . . . . Non-combat . | . . . . . . . . . . . . . . . . . . . . . . Combat . | . . . . . . . . . . . . . . . . . . . . . . Robot Hacks Applied . | . . . . . . . . . . . . . . . . . . . . . . Relay Couplers Released . | . . . . . . . . . . . . . . . . . . . . . . Fabnet Peak Effective % . | . . . . . . . . . . . . . . . . . . . . . . Robots Rewired . | . . . . . . . . . . . . . . . . . . . . . . Allies Hacked . | . . . . . . . . . . . . . . . . . . . . . . Hacks Repelled . | . . . . . . . . . . . . . . . . . . . . . . Allies | -11 -10 -10 -9 -8 -8 -7 -7 -7 -6 -6 -6 -6 -5 -5 -5 -5 -5 -4 -4 -3 -3 -------- Run | Scr Mat Min Mat Mat Sto Fac Low Low Fac Low Low Dat Pro Fac Upp Upp War Pro Fac Res Arm Total Allies 14 | . . . 1 . 11 . . . . . . . 1 1 . . . . . . . Largest Group 10 | . . . 1 . 10 . . . . . . . 1 1 . . . . . . . Highest-Rated Group 173 | . . . 10 . 173 . . . . . . . 96 26 . . . . . . . Highest-Rated Ally 96 | . . . 10 . 29 . . . . . . . 96 26 . . . . . . . Total Orders . | . . . . . . . . . . . . . . . . . . . . . . Ally Attacks 82 | . . . . . 70 . . . . . . . 12 . . . . . . . . Total Damage 1310 | . . . . . 942 . . . . . . . 368 . . . . . . . . Kills 11 | . . . . . 10 . . . . . . . 1 . . . . . . . . Allies Corrupted . | . . . . . . . . . . . . . . . . . . . . . . Allies Melted . | . . . . . . . . . . . . . . . . . . . . . . Intel | -11 -10 -10 -9 -8 -8 -7 -7 -7 -6 -6 -6 -6 -5 -5 -5 -5 -5 -4 -4 -3 -3 ------- Run | Scr Mat Min Mat Mat Sto Fac Low Low Fac Low Low Dat Pro Fac Upp Upp War Pro Fac Res Arm Robot Analysis Total . | . . . . . . . . . . . . . . . . . . . . . . Derelict Logs Recovered 9 | . . 2 . . . . 2 . . . 2 . 1 . . 1 . 1 . . . Drone Launches . | . . . . . . . . . . . . . . . . . . . . . . Drone Recoveries . | . . . . . . . . . . . . . . . . . . . . . . Exploration | -11 -10 -10 -9 -8 -8 -7 -7 -7 -6 -6 -6 -6 -5 -5 -5 -5 -5 -4 -4 -3 -3 ------------- Run | Scr Mat Min Mat Mat Sto Fac Low Low Fac Low Low Dat Pro Fac Upp Upp War Pro Fac Res Arm Turns Passed 3903 | 225 108 370 164 107 189 202 190 38 304 209 124 40 306 276 295 89 229 57 89 261 31 Spaces Moved 7642 | 130 88 278 332 160 334 527 303 125 869 560 408 116 461 485 507 267 665 202 248 487 90 Core 71 | 4 . . . . . . 3 . . . . . . . . . . . . 64 . Treads . | . . . . . . . . . . . . . . . . . . . . . . Legs 516 | 126 88 278 24 . . . . . . . . . . . . . . . . . . Wheels . | . . . . . . . . . . . . . . . . . . . . . . Hover . | . . . . . . . . . . . . . . . . . . . . . . Flight 7055 | . . . 308 160 334 527 300 125 869 560 408 116 461 485 507 267 665 202 248 423 90 Fastest Speed 24 | 50 120 120 30 27 26 24 25 27 26 26 26 26 26 26 29 29 28 28 28 30 33 Average Speed 34 | 119 120 120 37 27 26 24 30 27 26 26 27 26 26 28 29 29 28 28 33 35 34 Slowest Speed 400 | 120 120 120 180 104 104 25 400 27 27 26 100 26 26 32 29 29 32 28 35 150 45 Overloaded Moves . | . . . . . . . . . . . . . . . . . . . . . . Propulsion Burnouts . | . . . . . . . . . . . . . . . . . . . . . . Robots Hopped 76 | . . . 10 2 7 7 2 . 5 . 3 . 2 7 1 . 2 . 4 17 7 Cave-ins Triggered . | . . . . . . . . . . . . . . . . . . . . . . Exploration Rate (%) 41 | 6 17 61 27 21 63 21 55 15 20 64 64 75 79 17 53 60 93 48 11 20 12 Regions Visited 21 Branch Regions 13 Pre-discovered Areas 5 | . . 1 . . . . 1 . . . . 1 . 1 . . . 1 . . . Known Exits Taken 3 | . . . . . . . 1 . 1 . . . . 1 . . . . . . . Unknown Exits Taken 18 | 1 1 1 1 1 1 1 . 1 . 1 1 1 1 . 1 1 1 1 1 1 . Scrap Searched 12 | . . 2 . . . . 2 1 . 1 1 . 2 . 1 2 . . . . . Spaces Dug . | . . . . . . . . . . . . . . . . . . . . . . Terrain Destroyed 90 | . . . 3 19 29 . 7 . . . . . . 32 . . . . . . . Melee . | . . . . . . . . . . . . . . . . . . . . . . Projectile . | . . . . . . . . . . . . . . . . . . . . . . AOE 90 | . . . 3 19 29 . 7 . . . . . . 32 . . . . . . . Terrain Rammed . | . . . . . . . . . . . . . . . . . . . . . . Walls Destroyed . | . . . . . . . . . . . . . . . . . . . . . . Machines Disabled . | . . . . . . . . . . . . . . . . . . . . . . Actions | -11 -10 -10 -9 -8 -8 -7 -7 -7 -6 -6 -6 -6 -5 -5 -5 -5 -5 -4 -4 -3 -3 --------- Run | Scr Mat Min Mat Mat Sto Fac Low Low Fac Low Low Dat Pro Fac Upp Upp War Pro Fac Res Arm Total 8651 | 166 90 307 353 212 402 582 378 128 933 621 417 125 643 604 643 277 703 201 251 532 83 Wait 760 | 10 1 18 8 33 40 22 51 3 58 60 6 10 181 95 130 11 15 . 1 7 . Move 7476 | 129 87 277 311 155 319 512 298 124 858 559 402 115 456 470 504 266 661 201 239 454 79 Hop 69 | . . . 10 2 7 7 2 . 5 . 2 . 2 7 1 . 1 . 4 15 4 Pick Up 51 | 4 2 4 5 3 3 5 2 . 5 . 2 . 1 4 2 . 4 . 2 3 . Fast Attach 51 | 7 . . 3 3 1 2 . . 3 1 . . 1 8 . . 7 . 1 14 . Attach 36 | . . . 4 4 7 1 5 1 1 . 1 . . 6 1 . 2 . . 3 . Detach 10 | . . . 1 4 2 . . . . . 1 . . 1 . . . . . 1 . Swap 16 | 1 . . . 1 3 6 . . . 1 . . 1 3 . . . . . . . Drop 46 | . . 2 6 1 1 4 1 . 3 . 2 . 1 4 . . 12 . 4 5 . Fire 51 | 15 . 4 5 2 3 . 15 . . . . . . 2 5 . . . . . . Melee 47 | . . . . 4 13 5 4 . . . 1 . . 4 . . 1 . . 15 . Ram 15 | . . . . . . . . . . . . . . . . . . . . 15 . Kick 2 | . . 2 . . . . . . . . . . . . . . . . . . . Crush . | . . . . . . . . . . . . . . . . . . . . . . Escape Stasis 21 | . . . . . 3 18 . . . . . . . . . . . . . . . Rewire . | . . . . . . . . . . . . . . . . . . . . . . Trap . | . . . . . . . . . . . . . . . . . . . . . . Miscellaneous . | . . . . . . . . . . . . . . . . . . . . . . Route ------- -11/Scrapyard -10/Materials -10/Mines (discovered 2 exits: *Mat / [*Exi]) -9/Materials -8/Materials -8/Storage (discovered 2 exits: *Fac / [*Rec]) -7/Factory -7/Lower Caves -7/Lower Caves -6/Factory (discovered 4 exits: *Fac / *Low x2 / DSF) -6/Lower Caves -6/Lower Caves -6/Data Miner -5/Proximity Caves -5/Factory (discovered 2 exits: *Upp x2) -5/Upper Caves -5/Upper Caves -5/Warlord -4/Proximity Caves -4/Factory -3/Research (discovered 2 exits: *Arm / [*Tes]) -3/Armory History --------- Turn | Location | Event 27 | -11/Scrapyard | Discovered new exit (range 16) 226 | -11/Scrapyard | Entered Materials 261 | -10/Materials | Discovered new exit (range 5) 303 | -10/Materials | Build established: Mutant 334 | -10/Materials | Entered Mines 342 | -10/Mines | Learned 4 Materials zone layouts 396 | -10/Mines | Learned location of Zion (-7) 463 | -10/Mines | Deemed a non-threat by the Exiles lab entrance 464 | -10/Mines | Discovered new exit (range 5) 664 | -10/Mines | Discovered new exit (range 7) 688 | -10/Mines | Received a Rocket Launcher from a helpful Derelict 704 | -10/Mines | Entered Materials 704 | -9/Materials | Evolved 2 slots: Propulsion x1, Utility x1 866 | -9/Materials | Discovered new exit (range 10) 868 | -9/Materials | Entered another Materials area 868 | -8/Materials | Evolved 2 slots: Propulsion x1, Utility x1 894 | -8/Materials | Lost 3 parts (1n1u1w) 959 | -8/Materials | Discovered new exit (range 15) 975 | -8/Materials | Entered Storage 989 | -8/Storage | Assisted by bots powering up and referring to "LRC-V3" 1056 | -8/Storage | Lost 3 parts (3n) 1081 | -8/Storage | Repaired Lgt. Nuclear Core 1135 | -8/Storage | Used back door to open Recycling access 1135 | -8/Storage | Discovered new exit (range 5) 1155 | -8/Storage | Discovered new exit (range 8) 1164 | -8/Storage | Entered Factory 1164 | -7/Factory | Evolved 2 slots: Propulsion x1, Utility x1 1326 | -7/Factory | Repaired VTOL Module 1365 | -7/Factory | Discovered new exit (range 4) 1366 | -7/Factory | Entered Lower Caves 1491 | -7/Lower Caves | Lost 4 parts (1p2n1w) 1544 | -7/Lower Caves | Identified exit to Lower Caves 1545 | -7/Lower Caves | Attracted the attention of an 0b10 checkpoint 1556 | -7/Lower Caves | Entered another Lower Caves area 1557 | -7/Lower Caves | Encountered a Warlord checkpoint 1571 | -7/Lower Caves | Spotted B-75 Beast 1591 | -7/Lower Caves | Discovered new exit (range 12) 1594 | -7/Lower Caves | Entered Factory 1594 | -6/Factory | Evolved 2 slots: Utility x2 1620 | -6/Factory | Discovered new exit (range 12) 1731 | -6/Factory | Repaired Imp. Flight Unit 1751 | -6/Factory | Discovered new exit (range 19) 1851 | -6/Factory | Identified exit to DSF 1885 | -6/Factory | Identified exit to Lower Caves 1898 | -6/Factory | Entered Lower Caves 1900 | -6/Lower Caves | Attracted the attention of an 0b10 checkpoint 2031 | -6/Lower Caves | Build established: Infiltrator-Sprinter 2104 | -6/Lower Caves | Discovered new exit (range 12) 2107 | -6/Lower Caves | Entered another Lower Caves area 2121 | -6/Lower Caves | Learned Factory terminal intel 2137 | -6/Lower Caves | Learned location of 1 exit from Factory 2147 | -6/Lower Caves | Acquired the password to a Derelict Tinkerer's latest research 2155 | -6/Lower Caves | Found Prototype Special Weapon 2194 | -6/Lower Caves | Caught by Unaware searching for contraband prototypes 2229 | -6/Lower Caves | Discovered new exit (range 10) 2231 | -6/Lower Caves | Entered Data Miner 2231 | -6/Data Miner | Discovered new exit (range 6) 2235 | -6/Data Miner | Met Data Miner 2243 | -6/Data Miner | Learned location of Section 7 (-2) 2243 | -6/Data Miner | Acquired the access code to Warlord's prototype stash 2247 | -6/Data Miner | Received God Mode back door access code from Data Miner 2271 | -6/Data Miner | Entered Proximity Caves 2272 | -5/Proximity Caves | Learned Factory garrison access intel 2388 | -5/Proximity Caves | Escorted by Enhanced Grunt 2538 | -5/Proximity Caves | Discovered new exit (range 13) 2577 | -5/Proximity Caves | Entered Factory 2577 | -5/Factory | Evolved 2 slots: Utility x2 2578 | -5/Factory | Identified exit to Upper Caves 2579 | -5/Factory | Loaded intel: 26 terminal locations 2580 | -5/Factory | Loaded intel: 4 garrison access locations 2703 | -5/Factory | Repaired Xenon Bombardment Thruster 2717 | -5/Factory | Repaired ECM Suite 2823 | -5/Factory | Lost 8 parts (1p5n2u) 2853 | -5/Factory | Entered Upper Caves 2990 | -5/Upper Caves | Build established: Hacker-Sprinter 3006 | -5/Upper Caves | Identified Molecular Deconstructor 3063 | -5/Upper Caves | Encountered a Warlord checkpoint 3094 | -5/Upper Caves | Attracted the attention of an 0b10 checkpoint 3147 | -5/Upper Caves | Discovered new exit (range 4) 3148 | -5/Upper Caves | Entered another Upper Caves area 3163 | -5/Upper Caves | Encountered a Warlord checkpoint 3198 | -5/Upper Caves | Attracted the attention of an 0b10 checkpoint 3203 | -5/Upper Caves | Learned 12 Factory zone layouts 3235 | -5/Upper Caves | Discovered new exit (range 4) 3237 | -5/Upper Caves | Entered Warlord 3338 | -5/Warlord | Met Warlord 3341 | -5/Warlord | Opened Warlord's prototype stash 3349 | -5/Warlord | Found Prototype Processor 3349 | -5/Warlord | Identified Exp. Core Analyzer 3351 | -5/Warlord | Found Prototype Device 3351 | -5/Warlord | Identified Thermal Barrier 3355 | -5/Warlord | Found Prototype Device 3355 | -5/Warlord | Identified Exp. Phase Shifter 3363 | -5/Warlord | Warlord's base attacked by MAIN.C 3421 | -5/Warlord | Found Prototype Piercing Weapon 3422 | -5/Warlord | Found Prototype Piercing Weapon 3424 | -5/Warlord | Met EX-DEC 3457 | -5/Warlord | Opened side exit 3462 | -5/Warlord | Discovered new exit (range 10) 3466 | -5/Warlord | Entered Proximity Caves 3470 | -4/Proximity Caves | Learned location of Armory (-3) 3513 | -4/Proximity Caves | Attracted the attention of an 0b10 checkpoint 3515 | -4/Proximity Caves | Spotted B-86 Titan 3518 | -4/Proximity Caves | Discovered new exit (range 21) 3523 | -4/Proximity Caves | Entered Factory 3523 | -4/Factory | Evolved 2 slots: Power x1, Utility x1 3546 | -4/Factory | Lost 3 parts (1p2u) 3592 | -4/Factory | Spotted B-86 Titan 3598 | -4/Factory | Discovered new exit (range 22) 3612 | -4/Factory | Entered Research 3612 | -3/Research | Evolved 2 slots: Propulsion x1, Utility x1 3735 | -3/Research | Core integrity fell below 50% 3750 | -3/Research | Lost 6 parts (3n3u) 3872 | -3/Research | Discovered new exit (range 5) 3872 | -3/Research | Discovered new exit (range 15) 3873 | -3/Research | Entered Armory 3892 | -3/Armory | Core integrity fell below 20% 3893 | -3/Armory | Spotted B-86 Titan 3904 | -3/Armory | Destroyed by B-86 Titan with Railgun Last Messages --------------- GOAL=ESCAPE 03886_ O-24 Administrator: "IFF HANDSHAKE FAILED. SECURING TERMINAL." 03886_ Connecting with Terminal... 03886_ Current location identified: Armory 03886_ ALERT: Suspicious activity at Terminal A004. Dispatching Investigation squad. 03891_ Fabricator disabled. 03894_ Component Storage disabled. 03898_ Xenon Bombardment Thruster destroyed. 03901_ E-15 Imp destroyed. 03901_ Xenon Bombardment Thruster destroyed. 03901_ S-43 Plague Hvy. Machine Gun blasted off. 03901_ S-43 Plague destroyed. 03903_ B-86 Titan activates siege mode. 03903_ Lgt. Antimatter Reactor destroyed. 03903_ Scythe destroyed. 03903_ Lgt. Antimatter Reactor destroyed. 03903_ Impulse Thruster Array destroyed. 03904_ S-43 Plague destroyed. 03904_ Penetrated by Slug. Map ----- +----------------------------------------------------+ | | | | | | | | | | | | | | | ?????????????????????????????????????????????????? | | ?????????????????????????????????????????????????? | | ?????????????????????????????????????????????????? | | ????????????????????????????????????????????????## | | ?????????????????????????????????????????????? | | ????????????????????????????????????????????# | | ????????????????????????????????????????????# | | ????????????????????????????????????????????# | | ????????????????????????????????????????????# | | ???????????????????????????##+####+######+### | | ????????????????????????????" | | ????????????????????????????# | | ????????????????????????????# !! | | ?????????????????????????????? !* ^ | | ???????????????????????????????# ! "" " | | ???????????????????????????????# """"" | | ????????????######+############# ^""""" | | ?????????? w | | ?????????? @ = =% | | ?????????? w x =%/ s s[%[ | | ?????????? x s %==* | | ???????????#######+#############+####;;B ""####### | | ????????????????????????????# * ## # | | ????????????????????????????# """ "##### """" " | | ????????????????????????????# """ "#???# """" " | | ????????????????????????????# """ "#???# """" " | | ????????????????????????????# T#???# """" " | | ????????????????????????????# """ "#???# | | ????????????????????????????# """ % "#???# | | ????????????????????????????#???? "#???# | | ????????????????????????????????? ! #???# | | ?????????????????????????????????#####???# | | ?????????????????????????????????????????# "" | | ?????????????????????????????????????????# "" | | ?????????????????????????????????????????######### | | ?????????????????????????????????????????????????? | | ?????????????????????????????????????????????????? | | ?????????????????????????????????????????????????? | | ?????????????????????????????????????????????????? | | ?????????????????????????????????????????????????? | | ?????????????????????????????????????????????????? | | ?????????????????????????????????????????######### | | ?????????????????????????????????????????# | +----------------------------------------------------+ Best States ------------- Heat Dissipation 46 Energy Generation 37 Energy Capacity 315 Matter Stores 300 Matter Capacity 300 Sight Range 22 Robot Scan Range 16 Terrain Scan Range 16 Terrain Scan Density 10 ECM Strength 1 Jamming Range 12 Corruption Block 15 Evasion (%) 65 Launcher Accuracy 40 Core Analysis 8 Armor Integrity Analysis 30 Salvage Targeting 3 Offensive Hacking 21 Defensive Hacking 12 Item Schematics ----------------- VTOL Module | -8/Materials | Scanalyzed Rocket Launcher | -8/Materials | Scanalyzed Flight Unit | -8/Materials | Scanalyzed Combat Drone Bay | -6/Data Miner | Free Lgt. Regenerative Plating | -6/Data Miner | Free Cld. Gravmag System | -6/Data Miner | Free Imp. Matter Compressor | -6/Data Miner | Free Hvy. Gatling Laser | -6/Data Miner | Free Hvy. Siege Treads | -6/Data Miner | Free Imp. Force Field | -6/Data Miner | Free Hvy. Disruptor Cannon | -6/Data Miner | Free Mic. Fission Core | -6/Data Miner | Free Lgt. Particle Reactor | -6/Data Miner | Free Robot Schematics ------------------ A-15 Conveyor | -6/Data Miner | Free G-50 Soldier | -6/Data Miner | Free B-48 Gladiator | -6/Data Miner | Free X-72 Disruptor | -6/Data Miner | Free M-30 Cleanser | -6/Data Miner | Free L-61 Swordsman | -6/Data Miner | Free Fabricated ------------ Nothing Alien Tech Used ----------------- None Achievements -------------- Deconstruction Short-term Sacrifices Challenges ------------ None Game ------ Seed PotentialTrapPit Manual? 0 Play Time 01:24:06 Cumulative 50.6 hours Start 2022.10.04 @ 18:01:06 End 2022.10.04 @ 19:44:10 Sessions 3 Manual Loads 0 Difficulty Rogue Special Mode None Game No. 77 Rogue 76 Adventurer 1 Explorer 0 Win Type - Total 3 Types 3/0/0/0/0/0/0/0/0 Lore% 55 Gallery% 47 Achievement% 43 Wizard Run 0 Options --------- ASCII 0 Keyboard 0 Movement Numpad Keybinds 0 Fullscreen 1 Font 18/SmallcapsGlow Map View 76x50 Tactical HUD 1 Map Filters NONE Filters NONE Steam 1 RUN: ae4c6599-efcd-4151-a588-7ae329933f8e